[Event "Allsvenskan Div I 3 2023/2024: SS Manhem - Thunder Chess"]
[Site "Goteborgs schackcentrum, Vegatan 20, Gothenburg, Sweden"]
[Date "2024.01.14"]
[Round "1.1"]
[White "Mohammadi, Amir"]
[Black "Olsen, Filip Boe"]
[Result "0-1"]
[TimeControl "90 minutes for 40 moves + 30 minutes for the rest of the game + 30 seconds per move from move one."]
[BlackTitle "IM"]
[WhiteFideId "1705890"]
[BlackFideId "1440640"]
[WhiteElo "2286"]
[BlackElo "2441"]

1. e4 {[%clk 01:30:47]} {[%emt 00:00:12]} c5 {[%clk 01:30:40]} {[%emt
00:00:20]} 2. Nc3 {[%clk 01:30:53]} {[%emt 00:00:25]} d6 {[%clk 01:30:21]}
{[%emt 00:00:49]} 3. g3 {[%clk 01:30:43]} {[%emt 00:00:39]} Nf6 {[%clk
01:30:33]} {[%emt 00:00:20]} 4. Bg2 {[%clk 01:31:04]} {[%emt 00:00:09]} Nc6
{[%clk 01:30:46]} {[%emt 00:00:17]} 5. d3 {[%clk 01:30:55]} {[%emt 00:00:39]}
g6 {[%clk 01:30:47]} {[%emt 00:00:27]} 6. f4 {[%clk 01:26:33]} {[%emt
00:04:54]} Bg7 {[%clk 01:30:51]} {[%emt 00:00:26]} 7. Nf3 {[%clk 01:26:47]}
{[%emt 00:00:15]} O-O {[%clk 01:30:58]} {[%emt 00:00:23]} 8. O-O {[%clk
01:27:02]} {[%emt 00:00:15]} Rb8 {[%clk 01:31:09]} {[%emt 00:00:20]} 9. h3
{[%clk 01:26:14]} {[%emt 00:01:17]} b5 {[%clk 01:31:13]} {[%emt 00:00:26]} 10.
a3 {[%clk 01:26:21]} {[%emt 00:00:23]} a5 {[%clk 01:28:33]} {[%emt 00:03:09]}
11. g4 {[%clk 01:24:10]} {[%emt 00:02:41]} b4 {[%clk 01:27:21]} {[%emt
00:01:43]} 12. axb4 {[%clk 01:24:28]} {[%emt 00:00:12]} axb4 {[%clk 01:27:28]}
{[%emt 00:00:23]} 13. Ne2 {[%clk 01:24:49]} {[%emt 00:00:09]} Bb7 {[%clk
01:27:31]} {[%emt 00:00:27]} 14. Ng3 {[%clk 01:22:39]} {[%emt 00:02:39]} Ra8
{[%clk 01:25:51]} {[%emt 00:02:11]} 15. Rxa8 {[%clk 01:20:09]} {[%emt
00:03:00]} Qxa8 {[%clk 01:26:07]} {[%emt 00:00:12]} 16. g5 {[%clk 01:16:52]}
{[%emt 00:03:48]} Nd7 {[%clk 01:24:50]} {[%emt 00:01:47]} 17. h4 {[%clk
01:16:59]} {[%emt 00:00:23]} Qa1 {[%clk 01:21:50]} {[%emt 00:03:30]} 18. b3
{[%clk 01:13:46]} {[%emt 00:03:44]} Ra8 {[%clk 01:19:27]} {[%emt 00:02:52]} 19.
Bh3 {[%clk 01:01:02]} {[%emt 00:13:14]} Nf8 {[%clk 01:17:19]} {[%emt 00:02:34]}
20. f5 {[%clk 00:27:49]} {[%emt 00:33:47]} Ra2 {[%clk 01:08:44]} {[%emt
00:09:06]} 21. Ne2 {[%clk 00:21:32]} {[%emt 00:06:47]} Qb1 {[%clk 00:53:44]}
{[%emt 00:15:29]} 22. Ne1 {[%clk 00:20:09]} {[%emt 00:01:53]} Bd4+ {[%clk
00:40:46]} {[%emt 00:13:28]} 23. Kh1 {[%clk 00:18:28]} {[%emt 00:02:11]} Be3
{[%clk 00:38:50]} {[%emt 00:02:26]} 24. fxg6 {[%clk 00:16:46]} {[%emt
00:02:12]} Nxg6 {[%clk 00:33:30]} {[%emt 00:05:50]} 25. Nc3 {[%clk 00:15:18]}
{[%emt 00:01:59]} bxc3 {[%clk 00:29:07]} {[%emt 00:04:52]} 26. Qf3 {[%emt
00:01:47]} Nge5 {[%clk 00:27:56]} 27. Qxe3 {[%clk 00:16:01]} {[%emt 00:00:10]}
Ra1 {[%clk 00:27:42]} {[%emt 00:00:44]} 28. g6 {[%clk 00:04:32]} {[%emt
00:11:59]} hxg6 {[%clk 00:26:25]} {[%emt 00:01:47]} 29. Nf3 {[%clk 00:01:24]}
{[%emt 00:03:38]} Qxc2 {[%clk 00:26:05]} {[%emt 00:00:50]} 30. Be6 {[%clk
00:01:01]} {[%emt 00:00:52]} Ra2 {[%clk 00:21:08]} {[%emt 00:05:26]} 31. Bxf7+
{[%clk 00:01:15]} {[%emt 00:00:17]} Nxf7 {[%clk 00:21:30]} {[%emt 00:00:09]} 32.
Qg1 {[%clk 00:01:00]} {[%emt 00:00:45]} Nce5 {[%clk 00:20:36]} {[%emt
00:01:23]} 33. Nxe5 {[%clk 00:00:44]} {[%emt 00:00:46]} Nxe5 {[%clk 00:20:45]}
{[%emt 00:00:20]} 34. Bh6 {[%clk 00:00:35]} {[%emt 00:00:39]} Bxe4+ {[%clk
00:20:55]} {[%emt 00:00:21]} 0-1

[ePGN "0.1;DGT LiveChess/2.2.6"]

[Event "Allsvenskan Div I 3 2023/2024: SS Manhem - Thunder Chess"]
[Site "Goteborgs schackcentrum, Vegatan 20, Gothenburg, Sweden"]
[Date "2024.01.14"]
[Round "1.2"]
[White "Boe, Mads"]
[Black "Aaberg, Anton"]
[Result "1/2-1/2"]
[TimeControl "90 minutes for 40 moves + 30 minutes for the rest of the game + 30 seconds per move from move one."]
[WhiteTitle "FM"]
[BlackTitle "IM"]
[WhiteFideId "1401408"]
[BlackFideId "1701991"]
[WhiteElo "2291"]
[BlackElo "2317"]

1. e4 {[%clk 01:30:36]} {[%emt 00:00:22]} c6 {[%clk 01:30:25]} {[%emt
00:00:35]} 2. Nc3 {[%clk 01:27:59]} {[%emt 00:03:06]} d5 {[%clk 01:30:41]}
{[%emt 00:00:16]} 3. Nf3 {[%clk 01:25:11]} {[%emt 00:03:18]} Bg4 {[%clk
01:30:24]} {[%emt 00:00:47]} 4. h3 {[%clk 01:25:24]} {[%emt 00:00:17]} Bxf3
{[%clk 01:30:26]} {[%emt 00:00:27]} 5. Qxf3 {[%clk 01:25:47]} {[%emt 00:00:07]}
e6 {[%clk 01:30:45]} {[%emt 00:00:11]} 6. d4 {[%clk 01:15:56]} {[%emt
00:10:20]} Nf6 {[%clk 01:16:45]} {[%emt 00:14:31]} 7. Bd3 {[%clk 00:56:44]}
{[%emt 00:19:42]} dxe4 {[%clk 01:15:00]} {[%emt 00:02:15]} 8. Nxe4 {[%clk
00:56:43]} {[%emt 00:00:30]} Nxe4 {[%clk 01:12:23]} {[%emt 00:03:08]} 9. Qxe4
{[%clk 00:57:02]} {[%emt 00:00:11]} Nd7 {[%clk 01:12:16]} {[%emt 00:00:37]} 10.
c3 {[%clk 00:55:40]} {[%emt 00:01:52]} Nf6 {[%clk 01:10:41]} {[%emt 00:02:06]}
11. Qf3 {[%clk 00:54:19]} {[%emt 00:01:50]} Qd5 {[%clk 00:58:18]} {[%emt
00:12:54]} 12. Qxd5 {[%clk 00:45:22]} {[%emt 00:09:27]} Nxd5 {[%clk 00:52:44]}
{[%emt 00:06:04]} 13. Bd2 {[%clk 00:28:53]} {[%emt 00:16:58]} Be7 {[%clk
00:49:18]} {[%emt 00:03:57]} 14. O-O {[%clk 00:26:19]} {[%emt 00:03:04]} O-O
{[%clk 00:49:34]} {[%emt 00:00:14]} 15. Rfd1 {[%clk 00:24:26]} {[%emt
00:02:23]} Rad8 {[%clk 00:48:17]} {[%emt 00:01:47]} 1/2-1/2

[ePGN "0.1;DGT LiveChess/2.2.6"]

[Event "Allsvenskan Div I 3 2023/2024: SS Manhem - Thunder Chess"]
[Site "Goteborgs schackcentrum, Vegatan 20, Gothenburg, Sweden"]
[Date "2024.01.14"]
[Round "1.3"]
[White "Runnby, Jan"]
[Black "Welin, Mats"]
[Result "0-1"]
[TimeControl "90 minutes for 40 moves + 30 minutes for the rest of the game + 30 seconds per move from move one."]
[BlackTitle "FM"]
[WhiteFideId "1701290"]
[BlackFideId "1705180"]
[WhiteElo "2248"]
[BlackElo "2275"]

1. c4 {[%clk 01:30:54]} {[%emt 00:00:05]} Nf6 {[%clk 01:30:21]} {[%emt
00:00:40]} 2. Nc3 {[%emt 00:01:29]} c5 {[%clk 01:29:54]} 3. g3 {[%clk
01:29:47]} {[%emt 00:01:35]} d5 {[%clk 01:26:08]} {[%emt 00:04:17]} 4. cxd5
{[%clk 01:29:48]} {[%emt 00:00:28]} Nxd5 {[%clk 01:26:31]} {[%emt 00:00:07]} 5.
Bg2 {[%clk 01:29:53]} {[%emt 00:00:25]} Nc7 {[%clk 01:26:35]} {[%emt 00:00:26]}
6. Nf3 {[%clk 01:28:28]} {[%emt 00:01:54]} Nc6 {[%clk 01:25:38]} {[%emt
00:01:27]} 7. O-O {[%clk 01:26:56]} {[%emt 00:02:02]} e5 {[%clk 01:20:50]}
{[%emt 00:05:18]} 8. a3 {[%clk 01:24:34]} {[%emt 00:02:52]} f6 {[%clk
01:14:14]} {[%emt 00:07:07]} 9. d3 {[%clk 01:17:51]} {[%emt 00:07:13]} Be7
{[%clk 01:10:53]} {[%emt 00:03:50]} 10. Be3 {[%clk 01:13:37]} {[%emt 00:04:44]}
O-O {[%clk 01:08:26]} {[%emt 00:02:57]} 11. Rc1 {[%clk 01:12:32]} {[%emt
00:01:36]} Bd7 {[%clk 01:01:04]} {[%emt 00:07:51]} 12. Na4 {[%clk 01:05:56]}
{[%emt 00:07:06]} b6 {[%clk 00:58:37]} {[%emt 00:02:57]} 13. Nd2 {[%clk
01:01:03]} {[%emt 00:05:23]} Rc8 {[%clk 00:53:45]} {[%emt 00:05:23]} 14. b4
{[%clk 00:56:06]} {[%emt 00:05:27]} Nd4 {[%clk 00:50:27]} {[%emt 00:03:47]} 15.
Nc3 {[%clk 00:53:53]} {[%emt 00:02:43]} Kh8 {[%clk 00:45:12]} {[%emt 00:05:44]}
16. bxc5 {[%clk 00:43:45]} {[%emt 00:10:38]} Bxc5 {[%clk 00:45:06]} {[%emt
00:00:36]} 17. Nce4 {[%clk 00:38:38]} {[%emt 00:05:37]} Bxa3 {[%clk 00:40:52]}
{[%emt 00:04:44]} 18. Ra1 {[%clk 00:38:17]} {[%emt 00:00:51]} Ncb5 {[%clk
00:40:28]} {[%emt 00:00:54]} 19. Bxd4 {[%clk 00:32:27]} {[%emt 00:06:19]} exd4
{[%clk 00:38:51]} {[%emt 00:02:07]} 20. Nc4 {[%clk 00:32:10]} {[%emt 00:00:48]}
Bb4 {[%clk 00:35:54]} {[%emt 00:03:27]} 21. Qb3 {[%clk 00:30:43]} {[%emt
00:01:57]} a5 {[%clk 00:35:02]} {[%emt 00:01:22]} 22. Rfc1 {[%clk 00:29:13]}
{[%emt 00:01:59]} Re8 {[%clk 00:33:16]} {[%emt 00:02:15]} 23. Bf3 {[%clk
00:28:38]} {[%emt 00:01:06]} Rb8 {[%clk 00:31:53]} {[%emt 00:01:54]} 24. Kg2
{[%clk 00:26:20]} {[%emt 00:02:48]} Be6 {[%clk 00:30:56]} {[%emt 00:01:26]} 25.
Qd1 {[%clk 00:23:31]} {[%emt 00:03:19]} Nc3 {[%clk 00:29:25]} {[%emt 00:02:02]}
26. Nxc3 {[%clk 00:21:22]} {[%emt 00:02:39]} Bxc3 {[%clk 00:28:56]} {[%emt
00:00:59]} 27. Rab1 {[%clk 00:21:20]} {[%emt 00:00:32]} b5 {[%clk 00:27:26]}
{[%emt 00:02:00]} 28. Na3 {[%clk 00:20:34]} {[%emt 00:01:16]} Qd7 {[%clk
00:27:04]} {[%emt 00:00:52]} 29. e3 {[%clk 00:20:57]} {[%emt 00:00:07]} Ba2
{[%clk 00:14:34]} {[%emt 00:13:01]} 30. exd4 {[%clk 00:20:22]} {[%emt
00:01:06]} Bxb1 {[%clk 00:13:44]} {[%emt 00:01:20]} 31. Rxc3 {[%clk 00:19:05]}
{[%emt 00:01:46]} Ba2 {[%clk 00:13:49]} {[%emt 00:00:26]} 32. Rc5 {[%clk
00:15:36]} {[%emt 00:03:59]} Qxd4 {[%clk 00:11:48]} {[%emt 00:02:32]} 33. Rxb5
{[%clk 00:15:09]} {[%emt 00:00:57]} Rxb5 {[%clk 00:11:45]} {[%emt 00:00:33]} 34.
Nxb5 {[%clk 00:15:28]} {[%emt 00:00:11]} Qc5 {[%clk 00:12:03]} {[%emt
00:00:11]} 35. Qa4 {[%clk 00:14:49]} {[%emt 00:01:09]} Bd5 {[%clk 00:11:27]}
{[%emt 00:01:06]} 36. Nd4 {[%clk 00:14:09]} {[%emt 00:01:11]} Bxf3+ {[%clk
00:04:46]} {[%emt 00:07:11]} 37. Nxf3 {[%clk 00:13:48]} {[%emt 00:00:51]} Re2
{[%clk 00:04:37]} {[%emt 00:00:39]} 38. d4 {[%clk 00:12:27]} {[%emt 00:01:51]}
Qd5 {[%clk 00:04:30]} {[%emt 00:00:36]} 39. Qa3 {[%clk 00:10:54]} {[%emt
00:02:04]} h5 {[%clk 00:03:32]} {[%emt 00:01:28]} 40. h3 {[%clk 00:05:59]}
{[%emt 00:05:25]} Qa2 {[%clk 00:01:15]} {[%emt 00:02:47]} 41. Qf8+ {[%clk
00:03:45]} {[%emt 00:02:44]} Kh7 {[%clk 00:01:04]} {[%emt 00:00:41]} 42. g4
{[%clk 00:03:18]} {[%emt 00:00:57]} Rxf2+ {[%clk 00:30:00]} {[%emt 00:01:04]}
43. Kg3 {[%clk 00:33:24]} {[%emt 00:00:24]} Rg2+ {[%clk 00:30:20]} {[%emt
00:00:41]} 0-1

[ePGN "0.1;DGT LiveChess/2.2.6"]

[Event "Allsvenskan Div I 3 2023/2024: SS Manhem - Thunder Chess"]
[Site "Goteborgs schackcentrum, Vegatan 20, Gothenburg, Sweden"]
[Date "2024.01.14"]
[Round "1.4"]
[White "Akesson, Joel"]
[Black "Brzezinski, Adam"]
[Result "1-0"]
[TimeControl "90 minutes for 40 moves + 30 minutes for the rest of the game + 30 seconds per move from move one."]
[WhiteTitle "FM"]
[WhiteFideId "1705040"]
[BlackFideId "1710460"]
[WhiteElo "2208"]
[BlackElo "2190"]

1. c4 {[%clk 01:30:57]} {[%emt 00:00:02]} c5 {[%clk 01:30:48]} {[%emt
00:00:12]} 2. g3 {[%clk 01:31:19]} {[%emt 00:00:10]} Nc6 {[%clk 01:30:58]}
{[%emt 00:00:19]} 3. Bg2 {[%clk 01:31:30]} {[%emt 00:00:19]} g6 {[%clk
01:31:21]} {[%emt 00:00:07]} 4. Nc3 {[%clk 01:31:47]} {[%emt 00:00:12]} Bg7
{[%clk 01:31:46]} {[%emt 00:00:06]} 5. a3 {[%clk 01:32:01]} {[%emt 00:00:16]}
b6 {[%clk 01:30:01]} {[%emt 00:02:14]} 6. e3 {[%clk 01:28:29]} {[%emt
00:04:02]} Bb7 {[%clk 01:28:25]} {[%emt 00:02:06]} 7. Nge2 {[%clk 01:26:50]}
{[%emt 00:02:09]} e6 {[%clk 01:24:07]} {[%emt 00:04:49]} 8. d4 {[%clk
01:16:52]} {[%emt 00:10:28]} Na5 {[%clk 01:19:18]} {[%emt 00:05:19]} 9. Bxb7
{[%clk 01:12:30]} {[%emt 00:04:52]} Nxb7 {[%clk 01:19:43]} {[%emt 00:00:06]} 10.
d5 {[%clk 01:11:19]} {[%emt 00:01:40]} Nd6 {[%clk 01:15:11]} {[%emt 00:05:01]}
11. Qd3 {[%clk 01:05:21]} {[%emt 00:06:27]} Ne7 {[%clk 01:01:17]} {[%emt
00:14:26]} 12. e4 {[%clk 01:00:13]} {[%emt 00:05:38]} e5 {[%clk 00:55:25]}
{[%emt 00:06:21]} 13. O-O {[%clk 00:56:47]} {[%emt 00:03:56]} O-O {[%clk
00:54:06]} {[%emt 00:01:49]} 14. Be3 {[%clk 00:49:01]} {[%emt 00:08:15]} f5
{[%clk 00:38:05]} {[%emt 00:16:32]} 15. f3 {[%clk 00:48:18]} {[%emt 00:01:12]}
fxe4 {[%clk 00:35:21]} {[%emt 00:03:16]} 16. fxe4 {[%clk 00:46:59]} {[%emt
00:01:48]} Rxf1+ {[%clk 00:32:16]} {[%emt 00:03:35]} 17. Rxf1 {[%clk 00:46:57]}
{[%emt 00:00:32]} h6 {[%clk 00:32:35]} {[%emt 00:00:11]} 18. b4 {[%clk
00:42:12]} {[%emt 00:05:15]} Rc8 {[%clk 00:26:33]} {[%emt 00:06:33]} 19. bxc5
{[%clk 00:27:45]} {[%emt 00:14:57]} bxc5 {[%clk 00:26:52]} {[%emt 00:00:10]} 20.
Rb1 {[%clk 00:27:47]} {[%emt 00:00:26]} a6 {[%clk 00:21:26]} {[%emt 00:05:59]}
21. Na4 {[%clk 00:25:51]} {[%emt 00:02:23]} Qa5 {[%clk 00:16:50]} {[%emt
00:05:09]} 22. Nb6 {[%clk 00:21:09]} {[%emt 00:05:11]} Rb8 {[%clk 00:16:49]}
{[%emt 00:00:32]} 23. Bd2 {[%clk 00:20:32]} {[%emt 00:01:06]} Qxb6 {[%clk
00:17:15]} {[%emt 00:00:05]} 24. Rxb6 {[%clk 00:20:55]} {[%emt 00:00:06]} Rxb6
{[%clk 00:17:39]} {[%emt 00:00:06]} 25. Be3 {[%clk 00:20:55]} {[%emt 00:00:28]}
Nb7 {[%clk 00:16:56]} {[%emt 00:01:15]} 26. Nc3 {[%clk 00:21:00]} {[%emt
00:00:23]} 1-0

[ePGN "0.1;DGT LiveChess/2.2.6"]

[Event "Allsvenskan Div I 3 2023/2024: SS Manhem - Thunder Chess"]
[Site "Goteborgs schackcentrum, Vegatan 20, Gothenburg, Sweden"]
[Date "2024.01.14"]
[Round "1.5"]
[White "Virolainen, Victor"]
[Black "Lindholm, Gustav"]
[Result "0-1"]
[TimeControl "90 minutes for 40 moves + 30 minutes for the rest of the game + 30 seconds per move from move one."]
[WhiteFideId "1710672"]
[BlackFideId "1736515"]
[WhiteElo "2142"]
[BlackElo "2141"]

1. d4 {[%clk 01:30:56]} {[%emt 00:00:03]} d5 {[%clk 01:30:52]} {[%emt
00:00:08]} 2. c4 {[%clk 01:31:21]} {[%emt 00:00:05]} c6 {[%clk 01:31:18]}
{[%emt 00:00:04]} 3. cxd5 {[%clk 01:31:36]} {[%emt 00:00:16]} cxd5 {[%clk
01:31:39]} {[%emt 00:00:08]} 4. Bf4 {[%clk 01:31:56]} {[%emt 00:00:10]} Nc6
{[%clk 01:31:45]} {[%emt 00:00:24]} 5. Nc3 {[%clk 01:32:21]} {[%emt 00:00:06]}
Nf6 {[%clk 01:31:51]} {[%emt 00:00:24]} 6. e3 {[%clk 01:32:44]} {[%emt
00:00:06]} a6 {[%clk 01:31:12]} {[%emt 00:01:09]} 7. Bd3 {[%clk 01:32:06]}
{[%emt 00:01:08]} Bg4 {[%clk 01:26:18]} {[%emt 00:05:22]} 8. f3 {[%clk
01:32:26]} {[%emt 00:00:12]} Bh5 {[%clk 01:26:17]} {[%emt 00:00:31]} 9. Qb3
{[%clk 01:29:30]} {[%emt 00:03:25]} Na5 {[%clk 01:19:30]} {[%emt 00:07:15]} 10.
Qa4+ {[%clk 01:29:11]} {[%emt 00:00:51]} Nc6 {[%clk 01:19:31]} {[%emt
00:00:29]} 11. Rc1 {[%clk 01:16:00]} {[%emt 00:13:40]} e6 {[%clk 01:15:03]}
{[%emt 00:04:58]} 12. Nge2 {[%clk 01:11:57]} {[%emt 00:04:34]} Bd6 {[%clk
01:04:36]} {[%emt 00:10:57]} 13. e4 {[%clk 00:45:28]} {[%emt 00:27:00]} dxe4
{[%clk 00:54:42]} {[%emt 00:10:23]} 14. Nxe4 {[%clk 00:40:36]} {[%emt
00:05:22]} Bb4+ {[%clk 00:37:56]} {[%emt 00:17:15]} 15. Kf2 {[%clk 00:38:32]}
{[%emt 00:02:35]} Nd5 {[%clk 00:34:29]} {[%emt 00:03:55]} 16. Rxc6 {[%clk
00:19:36]} {[%emt 00:19:27]} bxc6 {[%clk 00:34:52]} {[%emt 00:00:07]} 17. Qxc6+
{[%clk 00:20:04]} {[%emt 00:00:03]} Kf8 {[%clk 00:34:39]} {[%emt 00:00:42]} 18.
Bd6+ {[%clk 00:20:14]} {[%emt 00:00:21]} Bxd6 {[%clk 00:34:29]} {[%emt
00:00:39]} 19. Nxd6 {[%clk 00:20:39]} {[%emt 00:00:04]} Nb4 {[%clk 00:34:29]}
{[%emt 00:00:31]} 20. Qc3 {[%clk 00:04:36]} {[%emt 00:16:33]} Nxd3+ {[%clk
00:34:43]} {[%emt 00:00:16]} 21. Qxd3 {[%clk 00:04:58]} {[%emt 00:00:09]} Qxd6
{[%clk 00:35:05]} {[%emt 00:00:07]} 22. Rc1 {[%clk 00:05:23]} {[%emt 00:00:05]}
Rd8 {[%clk 00:33:29]} {[%emt 00:02:06]} 23. Qe4 {[%clk 00:04:32]} {[%emt
00:01:22]} g5 {[%clk 00:31:19]} {[%emt 00:02:39]} 24. Rc6 {[%clk 00:04:34]}
{[%emt 00:00:28]} Qd5 {[%clk 00:31:19]} {[%emt 00:00:29]} 25. Qxd5 {[%clk
00:04:14]} {[%emt 00:00:51]} Rxd5 {[%clk 00:31:35]} {[%emt 00:00:14]} 26. Rxa6
{[%clk 00:04:39]} {[%emt 00:00:05]} Ke7 {[%clk 00:31:44]} {[%emt 00:00:21]} 27.
b4 {[%clk 00:04:53]} {[%emt 00:00:16]} Rb8 {[%clk 00:31:58]} {[%emt 00:00:16]}
28. a3 {[%clk 00:05:19]} {[%emt 00:00:05]} Bg6 {[%clk 00:31:32]} {[%emt
00:00:56]} 29. Ke3 {[%clk 00:05:46]} {[%emt 00:00:04]} Rd6 {[%clk 00:29:09]}
{[%emt 00:02:52]} 30. Ra7+ {[%clk 00:05:59]} {[%emt 00:00:17]} Rd7 {[%clk
00:29:27]} {[%emt 00:00:11]} 31. Ra5 {[%clk 00:06:25]} {[%emt 00:00:04]} f5
{[%clk 00:29:26]} {[%emt 00:00:32]} 32. b5 {[%clk 00:05:39]} {[%emt 00:01:16]}
f4+ {[%clk 00:29:44]} {[%emt 00:00:12]} 33. Kf2 {[%clk 00:05:40]} {[%emt
00:00:29]} Bd3 {[%clk 00:29:41]} {[%emt 00:00:32]} 34. Ng1 {[%clk 00:03:36]}
{[%emt 00:01:56]} 0-1

[ePGN "0.1;DGT LiveChess/2.2.6"]